lending/lending_fUSD_20260211
["ID","MTS","AMOUNT","RATE_DAILY","PERIOD"]
[405103226,1770821441456,-11392.07976116,0.00018,2]
[405103227,1770821441466,-424329.74743093,0.00018,2]
[405103228,1770821441475,-1016352.88153815,0.00018,2]
[405103243,1770821445100,-1000.0,0.0001726,2]
[405103244,1770821445110,-348.60436306,0.00017534,2]
[405103245,1770821445122,-651.39563694,0.00017534,2]
[405103246,1770821445132,-1000.0,0.00017808,2]
[405103247,1770821445141,-7397.1166343,0.00018,2]
[405103248,1770821445168,-6700.0,0.00018,2]
[405103261,1770821446111,-7825.8181304,0.00018,2]
[405103262,1770821446122,-33749.9217027,0.00018,2]
[405103263,1770821446133,-270.3166,0.00018,2]
[405103268,1770821455601,1000.0,0.00035616,120]
[405103269,1770821479166,1000.0,0.00035616,120]
[405103270,1770821498211,1000.0,0.00035616,120]
[405103271,1770821524523,1000.0,0.00035616,120]
[405103272,1770821580202,991.0,0.00035616,120]
[405103273,1770821608690,1488.5,0.00035616,120]
[405103274,1770822006080,-200.0,0.00013686,2]
[405103278,1770822361301,5000.0,0.000135,3]
[405103298,1770822512507,-550.0,0.000166,6]
[405103299,1770822516663,-200.0,0.00013686,2]
[405103300,1770822539288,211.0,0.00035616,120]
[405103301,1770822552720,-1000.0,0.000166,6]
[405103302,1770822555488,-1000.0,0.000166,6]
[405103303,1770822556156,-1000.0,0.000166,6]
[405103304,1770822556654,-1000.0,0.000166,6]
[405103305,1770822557685,-1000.0,0.000166,6]
[405103316,1770822632049,-500.0,0.00013698,2]
[405103317,1770822632060,-500.0,0.00013698,2]
[405103318,1770822632070,-157.56683688,0.00014773,2]
[405103319,1770822632080,-500.0,0.00014773,2]
[405103320,1770822632090,-500.0,0.00014773,2]
[405103321,1770822632101,-611.54819446,0.00015055,2]
[405103322,1770822632111,-280.52362488,0.00015055,2]
[405103323,1770822632122,-500.0,0.00015499,2]
[405103324,1770822632131,-166.66,0.00015647,2]
[405103325,1770822632141,-1200.0,0.00015975,2]
[405103326,1770822632151,-166.66,0.00015976,2]
[405103327,1770822632160,-161.14,0.00016221,2]
[405103328,1770822632170,-166.66,0.00016306,2]
[405103329,1770822632180,-500.0,0.00016356,2]
[405103330,1770822632190,-164.0,0.000164,2]
[405103331,1770822632200,-2828.0,0.000164,2]
[405103332,1770822632210,-1300.63524619,0.0001642,2]
[405103333,1770822632220,-550.0,0.00016434,2]
[405103334,1770822632230,-500.0,0.00016434,2]
[405103335,1770822632240,-500.0,0.00016434,2]
[405103336,1770822632254,-500.0,0.00016434,2]
[405103337,1770822632265,-500.0,0.00016434,2]
[405103338,1770822632274,-211.16078222,0.00016434,2]
[405103339,1770822632284,-277.38222033,0.00016434,2]
[405103340,1770822632293,-164.14828861,0.00016434,2]
[405103341,1770822632303,-500.0,0.00016434,2]
[405103342,1770822632313,-542.11253786,0.00016434,2]
[405103345,1770822632323,-500.0,0.00016434,2]
[405103346,1770822632333,-399.69117925,0.00016434,2]
[405103348,1770822632343,-10352.0,0.00016435,2]
[405103350,1770822632352,-580.06096555,0.00016435,2]
[405103352,1770822632362,-3482.28784276,0.00016435,2]
[405103354,1770822632372,-392457.00140901,0.00016435,2]
[405103355,1770822632387,-292.97700002,0.00016435,2]
[405103357,1770822632404,-6212.59328456,0.00016435,2]
[405103368,1770822638119,-3375.5170958,0.00016435,2]
[405103369,1770822638137,-386684.63334479,0.00016435,2]
[405103370,1770822638150,-65999.99999998,0.00016435,2]
[405103371,1770822638226,-3300.25,0.00016435,2]
[405103372,1770822638237,-648.94286654,0.00016435,2]
[405103373,1770822638251,-640.42830158,0.00016435,2]
[405103374,1770822638263,-1692196.17234021,0.00016435,2]
[405103375,1770822638306,-255.27338,0.00016435,2]
[405103376,1770822638318,-5494.62479964,0.00016435,2]
[405103379,1770822640284,-942441.58617787,0.00016435,2]
[405103380,1770822640293,-1682.1727,0.0001652,2]
[405103381,1770822640303,-11796.77286146,0.00016535,2]
[405103382,1770822640313,-1064.72963637,0.00016535,2]
[405103383,1770822640323,-3482.28784274,0.00016598,2]
[405103384,1770822640333,-1750.0,0.000166,6]
[405103385,1770822640342,-166.66,0.00016635,2]
[405103386,1770822640351,-11796.77286138,0.00016687,2]
[405103387,1770822640361,-14600.0,0.000167,6]
[405103388,1770822640370,-841.0,0.0001672,2]
[405103389,1770822640379,-2829.0,0.0001672,2]
[405103390,1770822640388,-3482.28784274,0.00016761,2]
[405103391,1770822640398,-21900.0,0.000168,6]
[405103392,1770822640413,-11796.77286138,0.00016838,2]
[405103393,1770822640424,-29200.0,0.000169,6]
[405103394,1770822640433,-3482.28784274,0.00016923,2]
[405103395,1770822640442,-166.66,0.00016965,2]
[405103396,1770822640452,-11796.77286138,0.0001699,2]
[405103397,1770822640461,-277.35679052,0.0001703,2]
[405103398,1770822640471,-902.0,0.0001704,2]
[405103399,1770822640480,-200.0,0.00017062,2]
[405103400,1770822640490,-150.0,0.00017072,2]
[405103401,1770822640499,-200.0,0.00017086,2]
[405103402,1770822640511,-3482.28784274,0.00017086,2]
[405103403,1770822640520,-1300.63524619,0.00017092,2]
[405103404,1770822640530,-150.95915695,0.00017128,2]
[405103405,1770822640540,-11796.77286138,0.00017142,2]
[405103406,1770822640549,-350.0,0.00017156,2]
[405103407,1770822640558,-3726.43,0.00017187,2]
[405103408,1770822640567,-10000.0,0.000172,2]
[405103409,1770822640576,-3482.28784274,0.00017249,2]
[405103410,1770822640586,-155.34959577,0.00017255,2]
[405103411,1770822640596,-11796.77286138,0.00017293,2]
[405103412,1770822640605,-166.66,0.00017294,2]
[405103413,1770822640615,-10000.0,0.000173,2]
[405103414,1770822640624,-1288.0,0.00017329,2]
[405103415,1770822640633,-617.0,0.00017329,2]
[405103416,1770822640643,-3487.0,0.00017329,2]
[405103417,1770822640652,-1337.0,0.00017329,2]
[405103418,1770822640662,-1273.0,0.00017329,2]
[405103419,1770822640671,-1207.0,0.00017329,2]
[405103420,1770822640680,-918.0,0.00017329,2]
[405103421,1770822640690,-5966.0,0.00017329,2]
[405103423,1770822640700,-2449.0,0.00017329,2]
[405103425,1770822640709,-6590.0,0.00017329,2]
[405103426,1770822640718,-1247.0,0.0001736,2]
[405103427,1770822640727,-841.0,0.0001736,2]
[405103428,1770822640736,-161.14,0.0001738,2]
[405103429,1770822640746,-10000.0,0.000174,2]
[405103430,1770822640758,-74292.7301,0.00017402,2]
[405103431,1770822640768,-2500.0,0.00017402,2]
[405103432,1770822640777,-189.05432291,0.00017402,2]
[405103433,1770822640786,-3482.28784274,0.00017412,2]
[405103434,1770822640977,-350.0,0.00017444,2]
[405103435,1770822641057,-11796.77286138,0.00017445,2]
[405103436,1770822641067,-288.0,0.00017455,2]
[405103437,1770822641077,-10000.0,0.000175,2]
[405103438,1770822641087,-1000.0,0.00017501,2]
[405103439,1770822641098,-500.0,0.00017501,2]
[405103440,1770822641108,-500.0,0.00017501,2]
[405103441,1770822641118,-500.0,0.00017501,2]
[405103442,1770822641128,-487.0,0.00017502,2]
[405103443,1770822641137,-487.0,0.00017502,2]
[405103444,1770822641148,-487.0,0.00017502,2]
[405103445,1770822641158,-487.0,0.00017502,2]
[405103446,1770822641167,-487.0,0.00017502,2]
[405103447,1770822641177,-487.0,0.00017502,2]
[405103448,1770822641186,-840.79,0.00017502,2]
[405103449,1770822641196,-487.0,0.00017502,2]
[405103450,1770822641205,-487.0,0.00017502,2]
[405103451,1770822641214,-487.0,0.00017502,2]
[405103452,1770822641223,-487.0,0.00017502,2]
[405103453,1770822641233,-772.96,0.00017502,2]
[405103454,1770822641242,-200.582,0.00017512,2]
[405103455,1770822641252,-168.0,0.00017524,2]
[405103456,1770822641263,-1000.0,0.00017534,2]
[405103457,1770822641273,-350.0,0.00017536,2]
[405103458,1770822641282,-271.0,0.00017552,2]
[405103459,1770822641291,-150.0,0.00017555,2]
[405103460,1770822641301,-150.0,0.00017555,2]
[405103461,1770822641310,-150.0,0.00017555,2]
[405103462,1770822641319,-150.0,0.00017555,2]
[405103463,1770822641329,-3482.28784274,0.00017574,2]
[405103464,1770822641338,-392.67596648,0.00017578,2]
[405103465,1770822641347,-11796.77286138,0.00017597,2]
[405103466,1770822641357,-10000.0,0.000176,2]
[405103467,1770822641366,-3293.07411944,0.0001764,2]
[405103468,1770822641375,-337.0,0.00017661,2]
[405103469,1770822641385,-10000.0,0.000177,2]
[405103470,1770822641394,-3482.28784274,0.00017737,2]
[405103471,1770822641404,-11796.77286138,0.00017748,2]
[405103472,1770822641413,-1300.63524619,0.00017763,2]
[405103473,1770822641422,-10000.0,0.000178,2]
[405103474,1770822641431,-500.0,0.00017808,2]
[405103475,1770822641441,-500.0,0.00017808,2]
[405103476,1770822641451,-500.0,0.00017808,2]
[405103477,1770822641460,-500.0,0.00017808,2]
[405103478,1770822641469,-500.0,0.00017808,2]
[405103479,1770822641478,-500.0,0.00017808,2]
[405103480,1770822641487,-500.0,0.00017808,2]
[405103481,1770822641496,-500.0,0.00017808,2]
[405103482,1770822641507,-500.0,0.00017808,2]
[405103483,1770822641517,-595.75919344,0.00017808,2]
[405103484,1770822641526,-500.0,0.00017808,2]
[405103485,1770822641535,-550.0,0.00017808,2]
[405103486,1770822641545,-1000.0,0.00017808,2]
[405103487,1770822641555,-200.0,0.00017856,2]
[405103488,1770822641564,-10000.0,0.000179,2]
[405103489,1770822641573,-3375.5171,0.000179,2]
[405103490,1770822641583,-10159.1076,0.000179,2]
[405103491,1770822641592,-33323.5159,0.000179,2]
[405103492,1770822641602,-1000.0,0.000179,2]
[405103493,1770822641611,-5013.5259727,0.000179,2]
[405103494,1770822641621,-11796.77286138,0.000179,2]
[405103495,1770822641630,-36600.0,0.000179,6]
[405103496,1770822641639,-3482.28784274,0.000179,2]
[405103497,1770822641648,-792.0,0.000179,2]
[405103498,1770822641658,-350.0,0.00017923,2]
[405103499,1770822641667,-168.0,0.00017949,2]
[405103500,1770822641676,-474.03942024,0.00017983,2]
[405103501,1770822641686,-87156.3889297,0.00017998,2]
[405103502,1770822641695,-220557.2268024,0.00017998,2]
[405103503,1770822641704,-4969.9637441,0.00017998,2]
[405103504,1770822641714,-155.0,0.00017999,2]
[405103505,1770822641723,-200.7093704,0.00017999,2]
[405103506,1770822641732,-59801.0483447,0.00017999,2]
[405103507,1770822641742,-1684.1722104,0.00017999,2]
[405103508,1770822641751,-863193.7754453,0.00018,2]
[405103509,1770822641761,-58863.43915701,0.00018,2]
[405103510,1770822641770,-4628.39340101,0.00018,2]
[405103511,1770822641780,-80567.40600938,0.00018,2]
[405103512,1770822641788,-151.91325944,0.00018,2]
[405103513,1770822641798,-150.0,0.00018,2]
[405103514,1770822641808,-11392.07976116,0.00018,2]
[405103515,1770822641817,-384.0,0.00018,2]
[405103516,1770822641828,-150.0,0.00018,2]
[405103517,1770822641837,-4685.51599946,0.00018,2]
[405103518,1770822641846,-384.0,0.00018,2]
[405103519,1770822641855,-384.0,0.00018,2]
[405103520,1770822641865,-384.0,0.00018,2]
[405103521,1770822641874,-384.0,0.00018,2]
[405103522,1770822641884,-384.0,0.00018,2]
[405103523,1770822641893,-384.0,0.00018,2]
[405103524,1770822641903,-384.0,0.00018,2]
[405103525,1770822641913,-475.0485272,0.00018,2]
[405103526,1770822641922,-384.0,0.00018,2]
[405103527,1770822641932,-152.0,0.00018,2]
[405103528,1770822641941,-152.0,0.00018,2]
[405103529,1770822641950,-152.0,0.00018,2]
[405103530,1770822641961,-155.0,0.00018,2]
[405103531,1770822641971,-152.0,0.00018,2]
[405103532,1770822641980,-155.0,0.00018,2]
[405103533,1770822641989,-1506.0,0.00018,2]
[405103534,1770822641999,-152.0,0.00018,2]
[405103535,1770822642008,-155.0,0.00018,2]
[405103536,1770822642018,-152.0,0.00018,2]
[405103537,1770822642028,-155.0,0.00018,2]
[405103538,1770822642038,-152.0,0.00018,2]
[405103539,1770822642047,-159.0,0.00018,2]
[405103540,1770822642056,-155.0,0.00018,2]
[405103541,1770822642065,-152.0,0.00018,2]
[405103542,1770822642075,-157.35594193,0.00018,2]
[405103543,1770822642084,-155.0,0.00018,2]
[405103544,1770822642093,-152.0,0.00018,2]
[405103545,1770822642102,-155.0,0.00018,2]
[405103546,1770822642111,-152.0,0.00018,2]
[405103547,1770822642120,-155.0,0.00018,2]
[405103548,1770822642130,-152.0,0.00018,2]
[405103549,1770822642139,-155.0,0.00018,2]
[405103550,1770822642149,-152.0,0.00018,2]
[405103551,1770822642158,-155.0,0.00018,2]
[405103552,1770822642167,-152.0,0.00018,2]
[405103553,1770822642178,-155.0,0.00018,2]
[405103554,1770822642187,-292.13098523,0.00018,2]
[405103555,1770822642196,-155.0,0.00018,2]
[405103556,1770822642205,-151.0,0.00018,2]
[405103557,1770822642215,-155.0,0.00018,2]
[405103558,1770822642224,-151.0,0.00018,2]
[405103559,1770822642233,-250.57517887,0.00018,2]
[405103560,1770822642243,-151.0,0.00018,2]
[405103561,1770822642254,-151.0,0.00018,2]
[405103562,1770822642262,-151.0,0.00018,2]
[405103563,1770822642272,-151.0,0.00018,2]
[405103564,1770822642281,-151.0,0.00018,2]
[405103565,1770822642291,-151.0,0.00018,2]
[405103566,1770822642300,-151.0,0.00018,2]
[405103567,1770822642309,-151.0,0.00018,2]
[405103568,1770822642319,-151.0,0.00018,2]
[405103569,1770822642329,-151.0,0.00018,2]
[405103570,1770822642338,-151.0,0.00018,2]
[405103571,1770822642347,-151.0,0.00018,2]
[405103572,1770822642356,-153.99186395,0.00018,2]
[405103573,1770822642366,-10000.0,0.00018,2]
[405103574,1770822642376,-151.0,0.00018,2]
[405103575,1770822642386,-178.51986,0.00018,2]
[405103576,1770822642395,-178.51987,0.00018,2]
[405103577,1770822642404,-150.0,0.00018,2]
[405103578,1770822642413,-150.0,0.00018,2]
[405103579,1770822642423,-200.0,0.00018,2]
[405103580,1770822642433,-1855.79897219,0.00018,2]
[405103581,1770822642442,-987.0,0.00018,2]
[405103582,1770822642452,-151.0,0.00018,2]
[405103583,1770822642461,-397.949574,0.00018,2]
[405103584,1770822642471,-397.949574,0.00018,2]
[405103585,1770822642480,-397.949574,0.00018,2]
[405103586,1770822642489,-397.949574,0.00018,2]
[405103587,1770822642498,-1000.0,0.00018082,2]
[405103588,1770822642514,-350.0,0.00018098,2]
[405103589,1770822642523,-250.0,0.000181,2]
[405103590,1770822642533,-160.0,0.00018143,2]
[405103591,1770822642542,-166.66,0.00018191,2]
[405103592,1770822642551,-300.0,0.000182,2]
[405103593,1770822642561,-1000.0,0.00018241,2]
[405103594,1770822642570,-155.0,0.00018299,2]
[405103595,1770822642580,-1000.0,0.00018356,2]
[405103596,1770822642589,-9000.30376913,0.00018376,2]
[405103597,1770822642599,-1300.63524619,0.00018435,2]
[405103598,1770822642608,-350.0,0.00018472,2]
[405103599,1770822642618,-161.14,0.00018539,2]
[405103600,1770822642628,-155.0,0.00018599,2]
[405103601,1770822642638,-1000.0,0.0001863,2]
[405103602,1770822642648,-168.0,0.0001864,2]
[405103603,1770822642658,-155.34959577,0.00018692,2]
[405103604,1770822642668,-166.66,0.00018721,2]
[405103605,1770822642677,-481.54882898,0.00018805,2]
[405103606,1770822642687,-481.54882897,0.00018805,2]
[405103607,1770822642697,-155.0,0.00018899,2]
[405103608,1770822642706,-1000.0,0.00018904,2]
[405103609,1770822642715,-350.0,0.00018934,2]
[405103610,1770822642724,-3631.23324025,0.00019,2]
[405103611,1770822642733,-500.0,0.00019,7]
[405103612,1770822642742,-500.0,0.00019,7]
[405103613,1770822642751,-500.0,0.00019,7]
[405103614,1770822642762,-500.0,0.00019,7]
[405103615,1770822642772,-500.0,0.00019,7]
[405103616,1770822642781,-500.0,0.00019,7]
[405103617,1770822642790,-500.0,0.00019,7]
[405103618,1770822642799,-500.0,0.00019,7]
[405103619,1770822642808,-500.0,0.00019,7]
[405103620,1770822642817,-500.0,0.00019,7]
[405103621,1770822642826,-500.0,0.00019,7]
[405103622,1770822642835,-500.0,0.00019,7]
[405103623,1770822642844,-500.0,0.00019,7]
[405103624,1770822642853,-500.0,0.00019,7]
[405103625,1770822642862,-500.0,0.00019,7]
[405103626,1770822642871,-500.0,0.00019,7]
[405103627,1770822642881,-500.0,0.00019,7]
[405103628,1770822642890,-500.0,0.00019,7]
[405103629,1770822642898,-500.0,0.00019,7]
[405103630,1770822642907,-500.0,0.00019,7]
[405103631,1770822642916,-500.0,0.00019,7]
[405103632,1770822642926,-500.0,0.00019,7]
[405103633,1770822642935,-500.0,0.00019,7]
[405103634,1770822642944,-500.0,0.00019,7]
[405103635,1770822642954,-500.0,0.00019,7]
[405103636,1770822642967,-500.0,0.00019,7]
[405103637,1770822642976,-500.0,0.00019,7]
[405103638,1770822642985,-500.0,0.00019,7]
[405103639,1770822642995,-500.0,0.00019,7]
[405103640,1770822643005,-500.0,0.00019,7]
[405103641,1770822643015,-500.0,0.00019,7]
[405103642,1770822643024,-500.0,0.00019,7]
[405103643,1770822643035,-500.0,0.00019,7]
[405103644,1770822643044,-500.0,0.00019,7]
[405103645,1770822643054,-500.0,0.00019,7]
[405103646,1770822643063,-500.0,0.00019,7]
[405103647,1770822643072,-500.0,0.00019,7]
[405103648,1770822643081,-500.0,0.00019,7]
[405103649,1770822643091,-500.0,0.00019,7]
[405103650,1770822643100,-500.0,0.00019,7]
[405103651,1770822643110,-414.05,0.00019,7]
[405103652,1770822643119,-500.0,0.00019,7]
[405103653,1770822643128,-500.0,0.00019,7]
[405103654,1770822643137,-500.0,0.00019,7]
[405103655,1770822643147,-500.0,0.00019,7]
[405103656,1770822643156,-500.0,0.00019,7]
[405103657,1770822643166,-500.0,0.00019,7]
[405103658,1770822643175,-500.0,0.00019,7]
[405103659,1770822643184,-500.0,0.00019,7]
[405103660,1770822643194,-500.0,0.00019,7]
[405103661,1770822643203,-500.0,0.00019,7]
[405103662,1770822643212,-500.0,0.00019,7]
[405103663,1770822643221,-500.0,0.00019,7]
[405103664,1770822643231,-500.0,0.00019,7]
[405103665,1770822643240,-500.0,0.00019,7]
[405103666,1770822643249,-500.0,0.00019,7]
[405103667,1770822643265,-500.0,0.00019,7]
[405103668,1770822643275,-500.0,0.00019,7]
[405103669,1770822643284,-500.0,0.00019,7]
[405103670,1770822643293,-500.0,0.00019,7]
[405103671,1770822643302,-500.0,0.00019,7]
[405103672,1770822643312,-500.0,0.00019,7]
[405103673,1770822643321,-500.0,0.00019,7]
[405103674,1770822643330,-500.0,0.00019,7]
[405103675,1770822643339,-500.0,0.00019,7]
[405103676,1770822643348,-500.0,0.00019,7]
[405103677,1770822643357,-500.0,0.00019,7]
[405103678,1770822643367,-500.0,0.00019,7]
[405103679,1770822643376,-500.0,0.00019,7]
[405103680,1770822643385,-500.0,0.00019,7]
[405103681,1770822643395,-500.0,0.00019,7]
[405103682,1770822643404,-500.0,0.00019,7]
[405103683,1770822643416,-500.0,0.00019,7]
[405103684,1770822643425,-500.0,0.00019,7]
[405103685,1770822643435,-500.0,0.00019,7]
[405103686,1770822643444,-500.0,0.00019,7]
[405103687,1770822643453,-500.0,0.00019,7]
[405103688,1770822643462,-500.0,0.00019,7]
[405103689,1770822643471,-500.0,0.00019,7]
[405103690,1770822643479,-500.0,0.00019,7]
[405103691,1770822643489,-500.0,0.00019,7]
[405103692,1770822643498,-500.0,0.00019,7]
[405103693,1770822643510,-500.0,0.00019,7]
[405103694,1770822643519,-500.0,0.00019,7]
[405103695,1770822643528,-500.0,0.00019,7]
[405103696,1770822643538,-500.0,0.00019,7]
[405103697,1770822643547,-500.0,0.00019,7]
[405103698,1770822643557,-500.0,0.00019,7]
[405103699,1770822643566,-500.0,0.00019,7]
[405103700,1770822643575,-500.0,0.00019,7]
[405103701,1770822643585,-500.0,0.00019,7]
[405103702,1770822643600,-500.0,0.00019,7]
[405103703,1770822643610,-500.0,0.00019,7]
[405103704,1770822643619,-500.0,0.00019,7]
[405103705,1770822643628,-500.0,0.00019,7]
[405103706,1770822643637,-500.0,0.00019,7]
[405103707,1770822643646,-500.0,0.00019,7]
[405103708,1770822643656,-500.0,0.00019,7]
[405103709,1770822643665,-500.0,0.00019,7]
[405103710,1770822643673,-500.0,0.00019,7]
[405103711,1770822643683,-500.0,0.00019,7]
[405103712,1770822643692,-373.98,0.00019,7]
[405103713,1770822643702,-220.61,0.00019,7]
[405103714,1770822643711,-500.0,0.00019,7]
[405103715,1770822643720,-10000.0,0.00019,2]
[405103716,1770822643729,-163.12697862,0.00019,2]
[405103717,1770822643738,-1300.63524619,0.00019106,2]
[405103718,1770822643749,-1738.07274027,0.00019178,2]
[405103719,1770822643761,-1299.78,0.00019178,2]
[405103720,1770822643771,-150.0,0.00019178,2]
[405103721,1770822643781,-1000.0,0.00019178,2]
[405103722,1770822643790,-150.11284277,0.00019178,2]
[405103723,1770822643800,-350.0,0.00019191,2]
[405103724,1770822643809,-155.0,0.00019199,2]
[405103725,1770822643818,-5347.89,0.00019339,2]
[405103726,1770822643827,-9999.99,0.00019339,2]
[405103727,1770822643837,-150.99,0.00019339,2]
[405103728,1770822643846,-350.0,0.00019396,2]
[405103729,1770822643856,-1000.0,0.00019452,2]
[405103730,1770822643865,-1000.0,0.00019478,2]
[405103731,1770822643875,-1000.0,0.0001948,2]
[405103732,1770822643885,-1000.0,0.00019498,2]
[405103734,1770822643895,-155.0,0.00019499,2]
[405103736,1770822643904,-1000.0,0.000195,2]
[405103738,1770822643914,-1000.0,0.00019504,2]
[405103739,1770822643924,-350.0,0.0001951,2]
[405103740,1770822643934,-1000.0,0.0001951,2]
[405103741,1770822643943,-1000.0,0.00019513,2]
[405103742,1770822643953,-1000.0,0.00019518,2]
[405103743,1770822643967,-1000.0,0.00019521,2]
[405103744,1770822643977,-1000.0,0.00019524,2]
[405103745,1770822643986,-1000.0,0.00019529,2]
[405103746,1770822643996,-1000.0,0.00019529,2]
[405103747,1770822644010,-1000.0,0.0001953,2]
[405103748,1770822644019,-1000.0,0.00019533,2]
[405103749,1770822644030,-1000.0,0.00019541,2]
[405103750,1770822644040,-1000.0,0.00019546,2]
[405103751,1770822644050,-1000.0,0.00019566,2]
[405103753,1770822644060,-1000.0,0.00019566,2]
[405103755,1770822644069,-1000.0,0.00019567,2]
[405103756,1770822644079,-1000.0,0.00019568,2]
[405103757,1770822644089,-1000.0,0.00019572,2]
[405103758,1770822644099,-1000.0,0.00019579,2]
[405103759,1770822644108,-1000.0,0.00019594,2]
[405103760,1770822644117,-1000.0,0.000196,2]
[405103761,1770822644127,-1000.0,0.0001961,2]
[405103762,1770822644136,-1000.0,0.00019612,2]
[405103763,1770822644146,-1000.0,0.00019612,2]
[405103764,1770822644155,-1000.0,0.00019613,2]
[405103765,1770822644165,-1000.0,0.00019622,2]
[405103766,1770822644174,-1000.0,0.00019626,2]
[405103767,1770822644183,-1000.0,0.00019629,2]
[405103768,1770822644193,-1000.0,0.00019634,2]
[405103769,1770822644202,-1000.0,0.00019635,2]
[405103770,1770822644211,-1000.0,0.00019636,2]
[405103771,1770822644220,-1000.0,0.00019651,2]
[405103772,1770822644229,-1000.0,0.00019658,2]
[405103773,1770822644238,-1000.0,0.0001966,2]
[405103774,1770822644247,-1000.0,0.00019673,2]
[405103775,1770822644261,-1000.0,0.00019676,2]
[405103776,1770822644271,-1000.0,0.00019686,2]
[405103777,1770822644280,-1000.0,0.00019687,2]
[405103778,1770822644290,-161.14,0.00019697,2]
[405103779,1770822644299,-1000.0,0.00019699,2]
[405103780,1770822644308,-1000.0,0.000197,2]
[405103781,1770822644317,-350.0,0.00019716,2]
[405103782,1770822644327,-1003.5,0.0001972,2]
[405103783,1770822644336,-350.0,0.00019721,2]
[405103784,1770822644345,-1000.0,0.00019724,2]
[405103785,1770822644354,-250.0,0.00019726,2]
[405103786,1770822644364,-1999.0,0.00019726,2]
[405103787,1770822644373,-1000.0,0.00019731,2]
[405103788,1770822644383,-150.0,0.00019736,2]
[405103789,1770822644392,-398.09497463,0.00019743,2]
[405103790,1770822644401,-150.0,0.00019743,2]
[405103791,1770822644410,-150.0,0.00019757,2]
[405103792,1770822644419,-194.89955888,0.00019761,2]
[405103793,1770822644429,-150.0,0.00019764,2]
[405103794,1770822644438,-150.0,0.00019765,2]
[405103795,1770822644447,-1300.63524619,0.00019778,2]
[405103796,1770822644457,-1064.72963632,0.00019787,2]
[405103797,1770822644466,-1000.0,0.00019797,2]
[405103798,1770822644475,-155.0,0.00019799,2]
[405103799,1770822644485,-150.0,0.00019804,2]
[405103800,1770822644494,-150.0,0.0001984,2]
[405103801,1770822644508,-150.0,0.00019843,2]
[405103802,1770822644517,-281.98695942,0.00019853,2]
[405103803,1770822644526,-150.0,0.00019854,2]
[405103804,1770822644535,-150.0,0.00019856,2]
[405103805,1770822644545,-50000.0,0.0001986,2]
[405103806,1770822644554,-87156.3889297,0.00019877,2]
[405103807,1770822644563,-220557.2268024,0.00019877,2]
[405103808,1770822644573,-150.0,0.00019878,2]
[405103809,1770822644582,-59801.0483447,0.00019878,2]
[405103810,1770822644591,-1000.0,0.000199,2]
[405103811,1770822644601,-7300.0,0.000199,7]
[405103812,1770822644610,-150.0,0.00019914,2]
[405103813,1770822644619,-150.0,0.00019939,2]